bitfinex/quotes_ETHUSD_20250905
["timestamp","ask_amount","ask_price","bid_price","bid_amount"]
[1757060852318,0.0002,4400.1,4400.0,17.00111683]
[1757060852613,1e-08,4401.0,4400.9,3.06426249]
[1757060852902,1e-08,4401.0,4400.9,9.21064793]
[1757060853200,1e-08,4401.0,4400.9,10.53536962]
[1757060856300,0.00020001,4401.4,4401.3,3.06405598]
[1757060856605,0.00020001,4401.4,4401.3,7.00177653]
[1757060856899,0.00020001,4401.4,4401.3,9.25772684]
[1757060859003,1e-08,4401.8,4401.7,3.06384951]
[1757060859198,1e-08,4401.8,4401.7,8.674568]
[1757060859501,1e-08,4401.8,4401.7,9.91184951]
[1757060859706,1e-08,4401.8,4401.7,10.00288242]
[1757060859907,1e-08,4401.8,4401.7,11.23036316]
[1757060861799,1e-08,4401.8,4401.7,9.97036316]
[1757060862315,1e-08,4401.8,4401.7,10.08216316]
[1757060864375,1e-08,4401.8,4401.7,6.16916316]
[1757060864580,1e-08,4401.8,4401.7,10.52516316]
[1757060864880,1e-08,4401.8,4401.7,10.43413025]
[1757060865834,1e-08,4401.8,4401.7,6.52213025]
[1757060865988,1e-08,4401.8,4401.7,10.43413025]
[1757060866321,0.46090001,4401.8,4401.7,10.43413025]
[1757060866688,0.46090001,4401.8,4401.7,9.08533025]
[1757060867216,1e-08,4401.8,4401.7,9.08533025]
[1757060867513,1e-08,4401.8,4401.7,5.17333025]
[1757060867689,1e-08,4401.8,4401.7,9.08433025]
[1757060867887,1e-08,4401.8,4401.7,5.17333025]
[1757060868088,1e-08,4401.8,4401.7,9.08433025]
[1757060870087,1e-08,4401.8,4401.7,5.17333025]
[1757060870412,1e-08,4401.8,4401.7,9.08433025]
[1757060870615,1e-08,4401.8,4401.7,7.85684951]
[1757060870817,1e-08,4401.8,4401.7,3.94584951]
[1757060871111,1e-08,4401.8,4401.7,7.85684951]
[1757060871315,1e-08,4401.8,4401.7,3.94584951]
[1757060871513,0.46090001,4401.8,4401.6,2.27188779]
[1757060871815,0.46090001,4401.8,4401.7,2.27184951]
[1757060871816,1e-08,4401.8,4401.7,2.27184951]
[1757060872426,0.46090001,4401.8,4401.7,2.27184951]
[1757060873722,0.46090001,4401.8,4401.7,6.18184951]
[1757060874492,1e-08,4401.8,4401.7,6.29464951]
[1757060884032,0.00020001,4401.9,4401.8,2.2717979]
[1757060884907,0.00020001,4401.9,4401.7,0.1128]
[1757060885105,0.00020001,4401.9,4401.7,4.0198]
[1757060885331,0.00020001,4401.9,4401.8,2.2717979]
[1757060885824,0.46110001,4401.9,4401.7,4.0198]
[1757060886130,0.4609,4401.8,4401.7,4.0198]
[1757060886816,0.00020001,4401.9,4401.7,0.1128]
[1757060887022,0.00020001,4401.9,4401.8,6.67511587]
[1757060887226,0.00020001,4401.9,4401.8,4.32501735]
[1757060887420,0.00020001,4401.9,4401.8,4.62961735]
[1757060887926,0.00020001,4401.9,4401.8,8.33161735]
[1757060888526,0.00020001,4401.9,4401.8,11.33161735]
[1757060888717,0.00020001,4401.9,4401.8,9.98281735]
[1757060889717,0.00020001,4401.9,4401.8,10.88881735]
[1757060891904,0.00020001,4401.9,4401.8,10.88781735]
[1757060893852,0.00020001,4401.9,4401.8,15.23661735]
[1757060897825,0.00020001,4401.9,4401.8,15.34941735]
[1757060898111,0.00020001,4401.9,4401.8,19.67557959]
[1757060899839,0.00020001,4401.9,4401.8,11.44441735]
[1757060900143,0.00020001,4401.9,4401.8,13.51581735]
[1757060900328,0.00020001,4401.9,4401.8,13.99431735]
[1757060901346,0.00020001,4401.9,4401.8,13.51581735]
[1757060902136,0.00020001,4401.9,4401.8,9.73761735]
[1757060902842,0.00020001,4401.9,4401.8,10.51241735]
[1757060906039,0.00020001,4401.9,4401.8,11.86121735]
[1757060906356,0.00020001,4401.9,4401.8,16.66587959]
[1757060907642,0.00020001,4401.9,4401.8,16.66987959]
[1757060910564,0.00020001,4401.9,4401.8,12.34371735]
[1757060910931,0.00020001,4401.9,4401.8,7.96321735]
[1757060911132,0.00020001,4401.9,4401.8,11.86221735]
[1757060911973,0.00040001,4402.3,4402.2,3.06359147]
[1757060912147,0.00040001,4402.3,4402.2,7.60891724]
[1757060912735,0.00040001,4402.3,4402.2,7.82099481]
[1757060913666,0.46950001,4402.3,4402.2,2.59646904]
[1757060913936,0.46950001,4402.3,4402.2,6.49446904]
[1757060914866,0.00040001,4402.3,4402.2,6.49446904]
[1757060918738,0.00040001,4402.3,4402.2,2.59646904]
[1757060919067,0.00040001,4402.3,4402.2,6.49346904]
[1757060923570,0.00040001,4402.3,4402.2,9.53506257]
[1757060923790,0.00040001,4402.3,4402.2,10.88386257]
[1757060924071,0.00040001,4402.3,4402.2,10.09186257]
[1757060926470,0.00040001,4402.3,4402.2,9.59666257]
[1757060926661,0.00040001,4402.3,4402.2,4.95666257]
[1757060926880,0.00040001,4402.3,4402.2,9.59366257]
[1757060928049,0.00040001,4402.3,4402.2,5.41286257]
[1757060928381,0.00040001,4402.3,4402.2,8.85066257]
[1757060928677,0.00040001,4402.3,4402.2,9.30686257]
[1757060928994,0.45660001,4402.3,4402.2,0.32487757]
[1757060929174,0.45660001,4402.3,4402.2,6.49046904]
[1757060929776,0.45660001,4402.3,4402.2,4.21887757]
[1757060929960,0.45660001,4402.3,4402.2,2.59646904]
[1757060930168,0.45660001,4402.3,4402.2,4.21787757]
[1757060930452,0.45660001,4402.3,4402.2,0.21207757]
[1757060930453,4.78276225,4402.3,4402.2,0.21207757]
[1757060930666,0.45660001,4402.3,4402.2,0.21207757]
[1757060930953,7.78276225,4402.3,4402.2,0.21207757]
[1757060931364,3.0,4402.2,4401.8,0.1168]
[1757060931560,3.0,4402.2,4401.9,0.21278135]
[1757060931877,0.4562,4402.1,4402.0,0.21278135]
[1757060932091,7.78236224,4402.1,4402.0,0.21278135]
[1757060933288,7.78236224,4402.1,4401.8,0.004]
[1757060933486,0.4562,4402.0,4401.9,0.21260325]
[1757060934286,0.4562,4402.0,4401.8,0.004]
[1757060934585,0.4562,4401.9,4401.8,0.004]
[1757060934886,0.4562,4401.9,4401.8,0.21650563]
[1757060935687,0.4562,4401.9,4401.8,0.21643655]
[1757060936287,3.0,4402.1,4401.8,0.21643655]
[1757060936479,3.0,4402.1,4401.8,0.004]
[1757060936784,0.4562,4402.0,4401.8,0.004]
[1757060937156,0.4562,4401.9,4401.8,0.004]
[1757060937557,0.00040001,4402.3,4402.2,3.06359147]
[1757060937757,0.00040001,4402.3,4402.2,8.42883814]
[1757060937973,0.00040001,4402.3,4402.2,8.40612223]
[1757060939476,0.00040001,4402.3,4402.2,8.49714582]
[1757060939675,0.00060001,4402.4,4402.3,3.06353987]
[1757060939874,0.00060001,4402.4,4402.3,4.22727063]
[1757060940071,0.00060001,4402.4,4402.3,4.51407063]
[1757060941573,0.00060001,4402.4,4402.3,4.51379779]
[1757060942773,0.00060001,4402.4,4402.3,4.30173987]
[1757060942976,0.00060001,4402.4,4402.3,5.67232123]
[1757060947595,0.00060001,4402.4,4402.3,5.78512123]
[1757060948292,0.00060001,4402.4,4402.3,7.64392123]
[1757060948461,0.00060001,4402.4,4402.3,6.27333987]
[1757060949276,0.00060001,4402.4,4402.3,7.00743987]
[1757060951302,0.00060001,4402.4,4402.3,7.48133987]
[1757060955175,0.00060001,4402.4,4402.3,8.27333987]
[1757060961010,0.00060001,4402.4,4402.3,8.27733987]
[1757060961186,0.00060001,4402.4,4402.3,9.6440153]
[1757060962275,0.00060001,4402.4,4402.3,10.9928153]
[1757060967710,0.00080001,4402.7,4402.6,2.27138509]
[1757060967890,0.00080001,4402.7,4402.6,6.17809894]
[1757060968089,0.00080001,4402.7,4402.6,7.47618509]
[1757060968287,0.00080001,4402.7,4402.6,10.07169696]
[1757060969204,0.00080001,4402.7,4402.6,9.59779696]
[1757060969406,0.00080001,4402.7,4402.6,8.86369696]
[1757060969609,0.00080001,4402.7,4402.6,9.59779696]
[1757060969813,0.00080001,4402.7,4402.6,8.86369696]
[1757060972501,0.00080001,4402.7,4402.6,9.59779696]
[1757060972695,0.00080001,4402.7,4402.6,10.07169696]
[1757060972891,0.00080001,4402.7,4402.6,8.86369696]
[1757060973509,0.00080001,4402.7,4402.6,9.15139696]
[1757060973717,0.00080001,4402.7,4402.6,10.07169696]
[1757060974215,0.00080001,4402.7,4402.6,8.24899696]
[1757060975402,0.00080001,4402.7,4402.6,7.51489696]
[1757060977085,0.00080001,4402.7,4402.6,3.63089696]
[1757060977386,0.00080001,4402.7,4402.6,7.51289696]
[1757060978987,0.00080001,4402.7,4402.6,3.63089696]
[1757060979187,0.00080001,4402.7,4402.6,6.26518509]
[1757060980109,0.00080001,4402.7,4402.6,8.06508509]
[1757060980614,0.00080001,4402.7,4402.6,8.35328509]
[1757060981215,0.00080001,4402.7,4402.6,3.73298509]
[1757060981520,0.00080001,4402.7,4402.6,7.61398509]
[1757060981678,0.00080001,4402.7,4402.6,8.61430315]
[1757060982414,0.00080001,4402.7,4402.6,9.35360315]
[1757060982611,0.00080001,4402.7,4402.6,8.61430315]
[1757060983613,0.00080001,4402.7,4402.6,4.73330315]
[1757060983808,0.00080001,4402.7,4402.6,8.61330315]
[1757060985623,0.00080001,4402.7,4402.6,9.06440315]
[1757060986123,0.00080001,4402.7,4402.6,7.71560315]
[1757060986623,0.00080001,4402.7,4402.6,8.00380315]
[1757060987592,0.00080001,4402.7,4402.6,7.26450315]
[1757060987918,0.00080001,4402.7,4402.6,7.26350315]
[1757060989913,0.00080001,4402.7,4402.6,7.71460315]
[1757060990321,0.00080001,4402.7,4402.6,7.26350315]
[1757060990513,0.00080001,4402.7,4402.6,7.71460315]
[1757060990713,0.00080001,4402.7,4402.6,8.00280315]
[1757060991692,0.00080001,4402.7,4402.6,2.38418509]
[1757060992023,0.47980001,4402.7,4402.6,0.1128]
[1757060992199,0.47980001,4402.7,4402.3,3.9948]
[1757060992403,2.27148827,4402.4,4402.3,0.004]
[1757060992789,5.75048827,4402.4,4402.3,0.004]
[1757060993699,3.479,4402.4,4402.3,0.004]
[1757060994995,3.0,4402.4,4402.3,0.004]
[1757060995624,0.47980001,4402.7,4402.3,0.004]
[1757060995823,0.47900001,4402.7,4402.3,0.004]
[1757060996023,1e-08,4402.7,4402.3,0.004]
[1757060996226,0.479,4402.6,4402.3,0.004]
[1757060996624,0.479,4402.5,4402.3,0.004]
[1757060997008,1e-08,4402.7,4402.3,0.004]
[1757060998016,1e-08,4402.7,4402.3,2.7265949]
[1757060998215,1e-08,4402.7,4402.3,2.2754949]
[1757060999044,1e-08,4402.7,4402.4,2.27148541]
[1757060999399,1e-08,4402.7,4402.3,2.27553723]
[1757061000226,1e-08,4402.7,4402.3,0.004]
[1757061000438,1e-08,4402.7,4402.3,2.27553429]
[1757061000615,1e-08,4402.7,4402.3,0.004]
[1757061002745,1e-08,4402.7,4402.3,2.27553229]
[1757061003330,1e-08,4402.7,4402.3,0.004]
[1757061003647,0.479,4402.6,4402.3,0.004]
[1757061003817,0.479,4402.5,4402.3,0.004]
[1757061004220,4.43776796,4402.7,4402.3,0.004]
[1757061004431,4.91676796,4402.7,4402.3,0.004]
[1757061004620,0.479,4402.6,4402.3,0.004]
[1757061006413,0.11280001,4402.7,4402.6,2.27138509]
[1757061006659,1e-08,4402.7,4402.6,3.47638509]
[1757061007014,1e-08,4402.7,4402.6,3.01068509]
[1757061008146,1e-08,4402.7,4402.6,2.27138509]
[1757061009137,1e-08,4402.7,4402.6,3.52438509]
[1757061009341,1e-08,4402.7,4402.6,4.50325131]
[1757061009644,1e-08,4402.7,4402.6,4.63876516]
[1757061009967,1e-08,4402.7,4402.6,4.61605131]
[1757061012758,1e-08,4402.7,4402.6,4.15045131]
[1757061012943,1e-08,4402.7,4402.6,8.50805131]
[1757061013950,1e-08,4402.7,4402.6,4.13385131]
[1757061014254,1e-08,4402.7,4402.6,8.50805131]
[1757061017134,1e-08,4402.7,4402.6,8.59907449]
[1757061018155,1e-08,4402.7,4402.6,8.00785131]
[1757061018453,1e-08,4402.7,4402.6,4.13385131]
[1757061018619,1e-08,4402.7,4402.6,8.00785131]
[1757061019826,1e-08,4402.7,4402.6,7.23605131]
[1757061020156,1e-08,4402.7,4402.6,8.00685131]
[1757061020353,1e-08,4402.7,4402.6,3.36305131]
[1757061020536,1e-08,4402.7,4402.6,8.00685131]
[1757061021769,1e-08,4402.7,4402.6,7.23605131]
[1757061022065,1e-08,4402.7,4402.6,3.36305131]
[1757061022247,1e-08,4402.7,4402.6,8.50605131]
[1757061023184,1e-08,4402.7,4402.6,7.23605131]
[1757061023475,0.02440001,4402.8,4402.7,2.27133349]
[1757061023839,0.02440001,4402.8,4402.7,2.73693349]
[1757061024039,0.02440001,4402.8,4402.7,3.04213349]
[1757061024256,0.58590001,4402.8,4402.5,3.872]
[1757061024458,4.78746795,4402.7,4402.5,3.872]
[1757061024663,0.2581,4402.6,4402.5,3.872]
[1757061027277,3.7206,4402.6,4402.3,3.876]
[1757061027483,4.32496795,4402.4,4402.3,0.004]
[1757061027666,3.2581,4402.6,4402.3,0.004]
[1757061027840,4.58306795,4402.4,4402.3,0.004]
[1757061032480,4.32496795,4402.4,4402.3,0.004]
[1757061032680,4.32496795,4402.4,4402.3,0.7748]
[1757061034354,0.1138,4402.7,4402.3,0.7748]
[1757061034686,4.32496795,4402.5,4402.3,0.4696]
[1757061035472,4.32496795,4402.5,4402.3,0.004]
[1757061036884,0.1138,4402.7,4402.3,0.004]
[1757061042164,0.099,4402.4,4402.3,0.004]
[1757061048401,3.568,4402.4,4402.3,0.004]
[1757061048994,5.83948827,4402.4,4402.3,0.004]
[1757061050766,5.37048827,4402.4,4402.3,0.004]
[1757061051194,5.36968827,4402.4,4402.3,0.004]
[1757061051897,9.69465622,4402.4,4402.3,0.004]
[1757061052476,7.42316795,4402.4,4402.3,0.004]
[1757061053083,9.69465622,4402.4,4402.3,0.004]
[1757061053282,5.36968827,4402.4,4402.3,0.004]
[1757061053482,9.69465622,4402.4,4402.3,0.004]
[1757061059607,5.36968827,4402.4,4402.3,0.004]
[1757061061919,10.63770094,4402.4,4402.3,0.004]
[1757061062114,11.26720094,4402.4,4402.3,0.004]
[1757061063806,11.27528842,4402.4,4402.3,0.004]
[1757061065213,1.674,4402.5,4402.3,0.2994]
[1757061065427,1.674,4402.5,4402.3,1.2338]
[1757061065428,3.865,4402.5,4402.3,1.2338]
[1757061065581,0.001,4402.7,4402.3,1.2338]
[1757061065582,0.001,4402.7,4402.5,2.27143668]
[1757061065789,0.001,4402.7,4402.6,2.27138509]
[1757061065983,0.001,4402.7,4402.6,2.56678509]
[1757061066190,0.001,4402.7,4402.6,3.50118509]
[1757061066400,0.001,4402.7,4402.6,7.95522776]
[1757061070227,0.001,4402.7,4402.6,7.95422776]
[1757061070604,0.0992,4402.7,4402.3,0.004]
[1757061070809,0.001,4402.7,4402.3,0.004]
[1757061071028,0.001,4402.7,4402.3,0.4546]
[1757061071231,0.001,4402.7,4402.3,0.004]
[1757061071413,0.001,4402.7,4402.4,0.4506]
[1757061071605,0.001,4402.7,4402.5,0.4506]
[1757061072010,0.001,4402.7,4402.4,0.4586]
[1757061072011,0.001,4402.7,4402.6,0.4506]
[1757061073627,0.001,4402.7,4402.6,0.7534]
[1757061073932,0.001,4402.7,4402.6,7.60349894]
[1757061074099,0.001,4402.7,4402.6,7.58078509]
[1757061075015,0.001,4402.7,4402.6,3.71778509]
[1757061075419,0.001,4402.7,4402.6,7.57978509]
[1757061076030,0.001,4402.7,4402.6,0.1128]
[1757061076232,0.001,4402.7,4402.5,3.862]
[1757061076420,0.001,4402.7,4402.3,2.27552921]
[1757061076620,0.001,4402.7,4402.3,6.13752921]
[1757061076816,0.001,4402.7,4402.4,0.4506]
[1757061077340,0.001,4402.7,4402.3,3.866]
[1757061077698,0.001,4402.7,4402.3,4.3166]
[1757061077902,0.001,4402.7,4402.3,0.004]
[1757061078121,0.001,4402.7,4402.3,3.865]
[1757061078808,0.0002,4402.7,4402.3,3.865]
[1757061079238,0.0002,4402.7,4402.3,4.3156]
[1757061079535,0.0002,4402.7,4402.4,0.4506]
[1757061080937,0.0002,4402.7,4402.6,0.3028]
[1757061081335,0.0002,4402.7,4402.6,0.7534]
[1757061082736,0.0002,4402.7,4402.4,0.4586]
[1757061083043,0.0002,4402.7,4402.5,0.4506]
[1757061084136,0.0002,4402.7,4402.6,0.3028]
[1757061084325,0.0002,4402.7,4402.6,0.7534]
[1757061084640,0.0002,4402.7,4402.6,1.212]
[1757061085663,0.0002,4402.7,4402.6,0.7534]
[1757061090327,0.0002,4402.7,4402.6,0.4506]
[1757061090642,0.0002,4402.7,4402.6,0.7534]
[1757061095853,0.257,4402.7,4402.3,6.13653074]
[1757061096150,0.257,4402.7,4402.4,0.4506]
[1757061096451,0.0002,4402.7,4402.6,0.3028]
[1757061096751,0.0002,4402.7,4402.6,0.7534]
[1757061096951,0.0002,4402.7,4402.6,1.212]
[1757061099459,0.0002,4402.7,4402.6,1.216]
[1757061099963,0.0002,4402.7,4402.6,0.7574]
[1757061100152,0.0002,4402.7,4402.6,8.0537784]
[1757061100463,0.0002,4402.7,4402.6,8.1665784]
[1757061101560,0.0002,4402.7,4402.6,4.3095784]
[1757061101765,0.0002,4402.7,4402.6,8.1665784]
[1757061102140,0.0002,4402.7,4402.6,3.8589784]
[1757061102349,0.0002,4402.7,4402.6,6.55388509]
[1757061102664,0.0002,4402.7,4402.6,7.47708509]
[1757061105439,0.0002,4402.7,4402.6,7.36428509]
[1757061105646,0.0002,4402.7,4402.6,7.47708509]
[1757061105849,0.0002,4402.7,4402.6,8.45234228]
[1757061106755,0.02480001,4402.8,4402.7,2.27133349]
[1757061107156,0.02480001,4402.8,4402.7,5.99294682]
[1757061107334,0.02480001,4402.8,4402.7,5.97023349]
[1757061107534,0.02480001,4402.8,4402.7,7.51634975]
[1757061109977,0.02480001,4402.8,4402.7,6.72434975]
[1757061110170,0.02480001,4402.8,4402.7,10.57934975]
[1757061110535,0.02480001,4402.8,4402.7,6.72434975]
[1757061110739,0.02480001,4402.8,4402.7,9.03323349]
[1757061112369,0.02480001,4402.8,4402.7,9.03223349]
[1757061112972,0.02480001,4402.8,4402.7,3.94533349]
[1757061113175,0.02480001,4402.8,4402.7,7.79933349]
[1757061113338,0.02480001,4402.8,4402.7,8.10903349]
[1757061113677,0.02480001,4402.8,4402.7,10.08196011]
[1757061114048,0.02480001,4402.8,4402.7,10.19476011]
[1757061117356,0.02480001,4402.8,4402.7,8.96086011]
[1757061117678,0.02480001,4402.8,4402.7,9.71516011]
[1757061117889,0.02480001,4402.8,4402.7,5.10786011]
[1757061118050,0.02480001,4402.8,4402.7,9.71516011]
[1757061118373,0.02480001,4402.8,4402.7,5.10786011]
[1757061118579,0.12300001,4402.8,4402.7,7.91113349]
[1757061119374,0.02480001,4402.8,4402.7,7.91113349]
[1757061120582,0.02480001,4402.8,4402.7,8.35573349]
[1757061121445,0.02480001,4402.8,4402.7,8.66543349]
[1757061121651,0.02480001,4402.8,4402.7,9.80737766]
[1757061122378,0.02480001,4402.8,4402.7,9.49767766]
[1757061122582,0.02480001,4402.8,4402.7,7.91113349]
[1757061127153,0.12300001,4402.8,4402.7,1.7868]
[1757061127350,5.27133349,4402.7,4402.6,0.004]
[1757061127550,5.27133349,4402.7,4402.3,0.004]
[1757061127551,3.0,4402.6,4402.3,0.004]
[1757061127757,0.0988,4402.4,4402.3,0.004]
[1757061132590,2.37028827,4402.4,4402.3,0.004]
[1757061132797,5.83248827,4402.4,4402.3,0.004]
[1757061133288,3.561,4402.4,4402.3,0.004]
[1757061134602,3.5602,4402.4,4402.3,0.004]
[1757061134766,3.098,4402.4,4402.3,0.004]
[1757061135593,5.36948827,4402.4,4402.3,0.004]
[1757061135802,3.098,4402.4,4402.3,0.004]
[1757061137074,5.36948827,4402.4,4402.3,0.004]
[1757061138599,3.098,4402.4,4402.3,0.004]
[1757061143508,5.36948827,4402.4,4402.3,0.004]
[1757061149309,5.99098827,4402.4,4402.3,0.004]
[1757061150214,6.16551145,4402.4,4402.3,0.004]
[1757061150578,2.27159147,4402.2,4402.1,0.004]
[1757061150906,2.27159147,4402.2,4401.6,0.004]
[1757061150907,3.0,4402.1,4401.6,0.004]
[1757061151107,10.9184432,4401.5,4401.4,1e-08]
[1757061151308,19.4404432,4401.5,4401.4,1e-08]
[1757061151517,20.1590432,4401.5,4401.4,1e-08]
[1757061151678,20.25013852,4401.5,4401.4,1e-08]
[1757061152080,15.92689329,4401.5,4401.4,1e-08]
[1757061153279,7.29254806,4401.5,4401.4,1e-08]
[1757061153483,10.88504806,4401.5,4401.4,0.29640001]
[1757061153683,10.88504806,4401.5,4401.4,0.76780001]
[1757061153986,10.88504806,4401.5,4401.4,1.25290001]
[1757061154722,10.88504806,4401.5,4401.4,0.76780001]
[1757061154896,11.14054806,4401.5,4401.4,1e-08]
[1757061155502,10.88504806,4401.5,4401.4,1e-08]
[1757061158037,11.13804806,4401.5,4401.4,1e-08]
[1757061158190,10.88504806,4401.5,4401.4,1e-08]
[1757061160697,11.13804806,4401.5,4401.4,1e-08]
[1757061162423,11.13724806,4401.5,4401.4,1e-08]
[1757061164689,11.62294806,4401.5,4401.4,1e-08]
[1757061164894,11.62804806,4401.5,4401.4,1e-08]
[1757061165095,11.62294806,4401.5,4401.4,1e-08]
[1757061167995,11.13724806,4401.5,4401.4,1e-08]
[1757061169028,11.62804806,4401.5,4401.4,1e-08]
[1757061170493,11.62294806,4401.5,4401.4,1e-08]
[1757061171699,7.03624806,4401.5,4401.4,0.29880001]
[1757061171919,10.88224806,4401.5,4401.4,1.21990001]
[1757061173730,0.09109532,4401.5,4401.4,1.34269001]
[1757061173932,0.1128,4402.2,4401.4,3.72747575]
[1757061174100,0.1128,4402.2,4401.5,0.9211]
[1757061174432,0.1128,4402.2,4401.4,2.80637575]
[1757061174433,0.1128,4402.2,4402.1,0.2988]
[1757061174832,7.43604523,4402.2,4401.8,0.4603]
[1757061175034,2.27184951,4401.7,4401.6,0.4608]
[1757061175329,3.845,4401.7,4401.6,0.7596]
[1757061175503,3.845,4401.7,4401.6,1.2199]
[1757061178312,3.845,4401.9,4401.6,3.95414593]
[1757061178505,3.0,4401.9,4401.7,0.9211]
[1757061178700,3.844,4402.0,4401.7,0.9211]
[1757061178905,3.844,4402.0,4401.8,1.2199]
[1757061179220,6.844,4402.0,4401.9,0.9211]
[1757061179531,6.844,4402.0,4401.9,0.7596]
[1757061180129,6.844,4402.0,4401.9,1.2199]
[1757061181429,0.1128,4402.1,4401.9,3.49162407]
[1757061181744,3.1138,4402.4,4402.0,0.9211]
[1757061181942,3.1138,4402.4,4402.3,0.2988]
[1757061182310,3.1138,4402.4,4402.3,1.2199]
[1757061182509,0.1138,4402.4,4402.3,1.2199]
[1757061182713,0.1138,4402.4,4402.3,3.60423987]
[1757061182714,0.001,4402.4,4402.3,3.60423987]
[1757061182956,0.001,4402.4,4402.3,4.1918254]
[1757061186226,0.001,4402.4,4402.3,8.0348254]
[1757061190244,0.0002,4402.4,4402.3,8.0348254]
[1757061193317,0.0002,4402.4,4402.3,8.8268254]
[1757061196664,0.0002,4402.4,4402.3,10.1756254]
[1757061196864,0.0002,4402.4,4402.3,6.3326254]
[1757061197071,0.0002,4402.4,4402.3,10.1726254]
[1757061197271,0.0002,4402.4,4402.3,6.3326254]
[1757061197431,0.0002,4402.4,4402.3,10.1726254]
[1757061199333,0.0002,4402.4,4402.3,8.8238254]
[1757061200352,0.0002,4402.4,4402.3,4.9838254]
[1757061200671,0.0002,4402.4,4402.3,8.8238254]
[1757061200974,0.0002,4402.4,4402.3,8.8228254]
[1757061201565,0.0002,4402.4,4402.3,4.9838254]
[1757061201774,0.0002,4402.4,4402.3,8.8330254]
[1757061202270,0.0002,4402.4,4402.3,8.8370254]
[1757061208063,0.0002,4402.4,4402.3,8.3665254]
[1757061208465,0.0002,4402.4,4402.3,6.8139254]
[1757061208684,0.0976,4402.4,4402.3,6.8139254]
[1757061210289,0.0976,4402.4,4402.3,2.9759254]
[1757061210497,0.0002,4402.4,4402.3,6.8139254]
[1757061212071,0.0002,4402.4,4402.3,8.0485254]
[1757061212268,0.0002,4402.4,4402.3,8.8405254]
[1757061214668,0.0002,4402.4,4402.3,8.0805254]
[1757061214869,0.0002,4402.4,4402.3,8.8405254]
[1757061215769,0.0002,4402.4,4402.3,5.0025254]
[1757061216084,0.0002,4402.4,4402.3,8.3690254]
[1757061216263,0.0002,4402.4,4402.3,8.0795254]
[1757061216468,0.0002,4402.4,4402.3,7.6049254]
[1757061217058,0.0976,4402.4,4402.3,6.8129254]
[1757061217876,0.0002,4402.4,4402.3,6.8129254]
[1757061218090,0.0004,4402.5,4402.4,2.27148827]
[1757061219480,0.0004,4402.5,4402.4,4.30779633]
[1757061220881,0.0004,4402.5,4402.4,4.33051121]
[1757061221408,0.0004,4402.5,4402.4,5.12251121]
[1757061221570,0.0004,4402.5,4402.4,5.09979633]
[1757061223304,0.0004,4402.5,4402.4,6.44859633]
[1757061223680,0.0004,4402.5,4402.4,4.77459633]
[1757061223881,0.0004,4402.5,4402.4,8.31299633]
[1757061224085,0.0004,4402.5,4402.4,9.03839633]
[1757061225573,0.0004,4402.5,4402.4,4.47699633]
[1757061225778,0.0978,4402.5,4402.4,7.45528827]
[1757061226784,0.0004,4402.5,4402.4,7.45528827]
[1757061228117,0.0004,4402.5,4402.4,8.18068827]
[1757061228617,0.0004,4402.5,4402.4,7.88308827]
[1757061229345,0.0004,4402.5,4402.4,6.10648827]
[1757061232389,0.0004,4402.5,4402.4,7.00785386]
[1757061232585,0.2534,4402.5,4402.4,3.17285386]
[1757061232791,0.2534,4402.5,4402.4,7.00685386]
[1757061232992,0.0004,4402.5,4402.4,7.00685386]
[1757061233842,0.0004,4402.5,4402.4,8.18645386]
[1757061236301,0.0004,4402.5,4402.4,7.73225386]
[1757061237725,0.0004,4402.5,4402.4,9.40525386]
[1757061246003,0.02440001,4402.8,4402.7,2.27133349]
[1757061246205,0.02440001,4402.8,4402.7,6.10333349]
[1757061246406,0.12180001,4402.8,4402.7,6.21613349]
[1757061251104,0.02440001,4402.8,4402.7,6.21613349]
[1757061251845,0.02440001,4402.8,4402.7,6.98053349]
[1757061252033,0.02440001,4402.8,4402.7,6.21613349]
[1757061252840,0.02440001,4402.8,4402.7,6.68503349]
[1757061253047,0.02440001,4402.8,4402.7,6.98053349]
[1757061253738,0.02440001,4402.8,4402.7,7.47893349]
[1757061253942,0.001,4402.9,4402.8,3.06328191]
[1757061254243,1e-08,4403.7,4403.0,3.792]
[1757061254414,1e-08,4403.7,4403.6,7.68223634]
[1757061254736,1e-08,4403.7,4403.6,13.18623634]
[1757061254937,1e-08,4403.7,4403.6,14.15353634]
[1757061255235,1e-08,4403.7,4403.6,14.51932735]
[1757061257031,1e-08,4403.7,4403.6,6.36446029]
[1757061257332,1e-08,4403.7,4403.6,5.17320093]
[1757061257536,0.09740001,4403.7,4403.6,8.13966029]
[1757061257764,0.09740001,4403.7,4403.6,7.77386928]
[1757061258247,0.74350001,4403.7,4403.6,5.503]
[1757061258420,0.74350001,4403.7,4403.6,7.77386928]
[1757061258421,0.09740001,4403.7,4403.6,7.77386928]
[1757061260652,0.09740001,4403.7,4403.6,5.503]
[1757061262147,0.58240001,4403.7,4403.6,5.503]
[1757061262516,0.58240001,4403.7,4403.5,2.27089414]
[1757061262711,0.58240001,4403.7,4403.6,3.829]
[1757061263171,0.58240001,4403.7,4403.3,2.27101441]
[1757061263331,0.09740001,4403.7,4403.4,3.829]
[1757061263532,0.09740001,4403.7,4403.5,2.27087806]
[1757061263731,0.09740001,4403.7,4403.6,3.829]
[1757061264065,0.09740001,4403.7,4403.6,3.9418]
[1757061264465,0.09740001,4403.7,4403.6,6.21266928]
[1757061264766,0.09740001,4403.7,4403.6,3.9418]
[1757061265357,0.09740001,4403.7,4403.6,6.21266928]
[1757061265556,0.09740001,4403.7,4403.6,0.1128]
[1757061265874,0.09740001,4403.7,4403.6,6.21266928]
[1757061268772,1e-08,4403.7,4403.6,6.21266928]
[1757061269365,0.09800001,4403.7,4403.6,6.21266928]
[1757061269560,1e-08,4403.7,4403.6,6.68056928]
[1757061269955,1e-08,4403.7,4403.6,6.21166928]
[1757061270156,1e-08,4403.7,4403.6,6.51116928]
[1757061270353,1e-08,4403.7,4403.6,0.1168]
[1757061270354,0.09740001,4403.7,4403.6,0.1168]
[1757061270554,0.58240001,4403.7,4403.6,3.9448]
[1757061271278,0.09740001,4403.7,4403.6,3.9448]
[1757061273458,1e-08,4403.7,4403.6,6.68456928]
[1757061273660,1e-08,4403.7,4403.6,6.98006928]